fUSD/lending_fUSD_20251119
["ID","MTS","AMOUNT","RATE_DAILY","PERIOD"]
[394396650,1763530232968,-500.0,0.00039419,15]
[394396651,1763530232979,-500.0,0.00039419,15]
[394396652,1763530232989,-383.2708766,0.00039419,15]
[394396653,1763530232999,-808.0,0.0003942,5]
[394396654,1763530233010,-170.96446725,0.00039467,2]
[394396655,1763530233021,-525.24733641,0.00039473,5]
[394396656,1763530233032,-500.0,0.00039473,5]
[394396657,1763530233042,-225.46619755,0.00039473,5]
[394396658,1763530233052,-500.0,0.00039473,5]
[394396659,1763530233064,-501.23288247,0.00039473,5]
[394396660,1763530233075,-500.0,0.00039473,5]
[394396661,1763530233085,-500.0,0.00039473,5]
[394396662,1763530233096,-243.0,0.0003961,7]
[394396663,1763530233106,-6874.06469336,0.0003964,2]
[394396664,1763530233116,-2500.0,0.00039641,2]
[394396665,1763530233127,-243.0,0.00039648,2]
[394396666,1763530233137,-3690.3663,0.00039649,2]
[394396667,1763530233148,-1000.0,0.00039651,2]
[394396668,1763530233158,-271.63759394,0.00039662,2]
[394396669,1763530233168,-500.0,0.00039673,5]
[394396670,1763530233178,-528.41951477,0.00039673,5]
[394396671,1763530233187,-507.42804718,0.00039673,5]
[394396672,1763530233198,-243.0,0.00039703,2]
[394396673,1763530233208,-150.53,0.00039731,2]
[394396674,1763530233219,-381.00924691,0.00039731,2]
[394396675,1763530233230,-869.56,0.00039738,30]
[394396676,1763530233244,-34212.82133164,0.00039738,2]
[394396677,1763530233256,-500.0,0.0003974,2]
[394396678,1763530233266,-500.0,0.0003974,2]
[394396679,1763530233277,-500.0,0.0003974,2]
[394396680,1763530233287,-500.0,0.0003974,2]
[394396681,1763530233298,-263668.28254613,0.00039741,4]
[394396682,1763530233368,-14352.53619087,0.00039741,4]
[394396683,1763530233384,-202.58643644,0.0003975,31]
[394396684,1763530233405,-281.58935373,0.0003975,31]
[394396685,1763530233423,-604.64314035,0.0003975,31]
[394396686,1763530233434,-150.0,0.0003975,31]
[394396687,1763530233446,-500.0,0.0003975,120]
[394396688,1763530233460,-500.0,0.0003975,120]
[394396689,1763530233471,-307.5746654,0.0003975,120]
[394396690,1763530233483,-500.0,0.0003975,120]
[394396691,1763530233495,-500.0,0.0003975,120]
[394396692,1763530233505,-512.60984382,0.0003975,120]
[394396693,1763530233516,-500.0,0.0003975,120]
[394396694,1763530233528,-500.0,0.0003975,120]
[394396695,1763530233541,-500.0,0.0003975,120]
[394396696,1763530233552,-500.0,0.0003975,120]
[394396697,1763530233561,-500.0,0.0003975,120]
[394396698,1763530233571,-500.0,0.0003975,120]
[394396699,1763530233581,-500.0,0.0003975,120]
[394396700,1763530233590,-500.0,0.0003975,7]
[394396701,1763530233600,-500.0,0.0003975,120]
[394396702,1763530233609,-500.0,0.0003975,7]
[394396703,1763530233619,-251.22210553,0.0003975,120]
[394396704,1763530233630,-500.0,0.0003975,7]
[394396705,1763530233640,-513.27495938,0.0003975,120]
[394396706,1763530233651,-1031.64203467,0.0003975,30]
[394396707,1763530233661,-404.25313557,0.0003975,120]
[394396708,1763530233673,-504.27858024,0.0003975,120]
[394396709,1763530233683,-574.84157379,0.0003975,120]
[394396710,1763530233693,-500.0,0.0003975,120]
[394396711,1763530233702,-612.35205509,0.0003975,120]
[394396712,1763530233712,-500.0,0.0003975,120]
[394396713,1763530233722,-500.0,0.0003975,120]
[394396714,1763530233732,-500.0,0.0003975,120]
[394396715,1763530233742,-500.0,0.0003975,30]
[394396716,1763530233751,-500.0,0.0003975,30]
[394396717,1763530233762,-500.0,0.0003975,30]
[394396718,1763530233772,-500.0,0.0003975,120]
[394396719,1763530233781,-500.0,0.0003975,120]
[394396720,1763530233792,-500.0,0.0003975,120]
[394396721,1763530233802,-500.0,0.0003975,120]
[394396722,1763530233811,-500.0,0.0003975,120]
[394396723,1763530233821,-500.0,0.0003975,120]
[394396724,1763530233831,-500.0,0.0003975,120]
[394396725,1763530233841,-500.0,0.0003975,120]
[394396726,1763530233850,-552.70690128,0.0003975,120]
[394396727,1763530233860,-500.0,0.0003975,2]
[394396728,1763530233871,-500.0,0.0003975,2]
[394396729,1763530233881,-500.0,0.0003975,2]
[394396730,1763530233891,-450.97471094,0.0003975,30]
[394396731,1763530233900,-500.0,0.0003975,2]
[394396732,1763530233910,-500.0,0.0003975,2]
[394396733,1763530233920,-500.0,0.0003975,2]
[394396734,1763530233930,-1031.64203467,0.0003975,30]
[394396735,1763530233939,-627.09070998,0.0003975,120]
[394396736,1763530233949,-500.0,0.00039773,5]
[394396737,1763530233959,-300.0,0.00039811,2]
[394396738,1763530233969,-1000.0,0.00039842,30]
[394396739,1763530233979,-1000.0,0.00039842,30]
[394396740,1763530233990,-1000.0,0.00039842,30]
[394396741,1763530233999,-1000.0,0.00039842,30]
[394396742,1763530234009,-1000.0,0.00039842,30]
[394396743,1763530234019,-6874.06469327,0.00039872,15]
[394396744,1763530234028,-16624.30276032,0.00039888,2]
[394396745,1763530234038,-287.47624325,0.000399,120]
[394396746,1763530234048,-170.96446725,0.00039919,2]
[394396747,1763530234060,-66240.83726713,0.0003998,2]
[394396748,1763530234074,-8493.37204896,0.0003998,2]
[394396749,1763530234086,-5202.23227391,0.0003998,2]
[394396750,1763530234096,-635.93,0.0004,120]
[394396751,1763530234106,-192.03,0.0004,120]
[394396752,1763530234116,-270.35,0.0004,120]
[394396753,1763530234126,-250.2483087,0.00040008,2]
[394396754,1763530234138,-21.38928522,0.00040008,2]
[394396755,1763530234147,-869.56,0.00040012,30]
[394396756,1763530234157,-109.05071478,0.00040021,5]
[394396757,1763530234170,-890.94928522,0.00040021,5]
[394396758,1763530234180,-500.0,0.00040021,5]
[394396759,1763530234189,-6874.06469327,0.00040104,15]
[394396760,1763530234199,-500.0,0.00040118,2]
[394396761,1763530234209,-1000.0,0.00040119,30]
[394396762,1763530234220,-243.0,0.00040209,7]
[394396763,1763530234230,-508.28181366,0.00040221,5]
[394396764,1763530234239,-1020.05341,0.0004028,3]
[394396765,1763530234249,-646.1692445,0.00040286,30]
[394396766,1763530234262,-223.3907555,0.00040286,30]
[394396767,1763530234272,-440.14473048,0.00040321,5]
[394396768,1763530234284,-63.36494156,0.00040321,5]
[394396769,1763530234294,-6874.06469327,0.00040336,15]
[394396770,1763530234304,-271.63759392,0.00040353,2]
[394396771,1763530234313,-170.96446725,0.00040371,28]
[394396772,1763530234323,-1000.0,0.00040404,7]
[394396773,1763530234333,-1020.05341,0.0004048,4]
[394396774,1763530234343,-200.60312298,0.000405,120]
[394396775,1763530234353,-13.14569171,0.0004056,30]
[394396776,1763530234365,-856.41430829,0.0004056,30]
[394396777,1763530234375,-459.09208916,0.00040566,2]
[394396778,1763530234558,-6874.06469327,0.00040568,15]
[394396779,1763530234575,-243.0,0.00040652,2]
[394396780,1763530234584,-243.0,0.00040685,120]
[394396781,1763530234594,-1020.05341,0.00040691,5]
[394396782,1763530234604,-271.63759392,0.00040699,2]
[394396783,1763530234613,-1020.05342,0.0004073,5]
[394396784,1763530234623,-1000.0,0.00040744,7]
[394396785,1763530234632,-153.0,0.00040748,120]
[394396786,1763530234641,-6874.06469327,0.000408,15]
[394396787,1763530234650,-170.96446725,0.00040823,28]
[394396788,1763530234660,-869.56,0.00040834,30]
[394396789,1763530234669,-150.0,0.00040865,7]
[394396790,1763530234678,-700.6,0.00040877,2]
[394396791,1763530234687,-481.44,0.00040877,2]
[394396792,1763530234697,-478.61,0.00040877,2]
[394396793,1763530234706,-478.61,0.00040877,2]
[394396794,1763530234715,-478.61,0.00040877,2]
[394396795,1763530234724,-300.0,0.00040886,2]
[394396796,1763530234733,-252.11703517,0.0004089,30]
[394396797,1763530234745,-300.0,0.00040934,2]
[394396798,1763530234754,-243.0,0.00040955,120]
[394396799,1763530234765,-243.0,0.0004096,7]
[394396800,1763530234776,-1020.05341,0.0004098,7]
[394396801,1763530234785,-150.0,0.00040983,7]
[394396802,1763530234794,-165.0,0.00041,90]
[394396803,1763530234803,-300.0,0.00041002,2]
[394396804,1763530234812,-550.38,0.00041014,2]
[394396805,1763530234821,-300.0,0.00041024,2]
[394396806,1763530234830,-6874.06469327,0.00041032,15]
[394396807,1763530234839,-300.0,0.00041036,2]
[394396808,1763530234848,-271.63759392,0.00041045,2]
[394396809,1763530234857,-300.0,0.00041047,2]
[394396810,1763530234866,-6756.0,0.00041051,5]
[394396811,1763530234875,-151.0,0.00041051,120]
[394396812,1763530234884,-153.565717,0.00041051,120]
[394396813,1763530234892,-151.0,0.00041051,120]
[394396814,1763530234902,-500.0,0.00041073,5]
[394396815,1763530234911,-500.0,0.00041073,5]
[394396816,1763530234920,-504.33283396,0.00041073,5]
[394396817,1763530234930,-501.00427007,0.00041073,5]
[394396818,1763530234939,-469.61672923,0.00041073,5]
[394396819,1763530234948,-500.91389583,0.00041073,5]
[394396820,1763530234958,-300.0,0.00041075,2]
[394396821,1763530234967,-300.0,0.00041079,2]
[394396822,1763530234976,-235.28899,0.00041086,120]
[394396823,1763530234985,-235.28899,0.00041086,120]
[394396824,1763530234995,-235.28899,0.00041086,120]
[394396825,1763530235004,-235.28899,0.00041086,120]
[394396826,1763530235013,-555.7,0.00041095,2]
[394396827,1763530235022,-3566.23,0.00041095,2]
[394396828,1763530235032,-500.0,0.00041095,2]
[394396829,1763530235041,-300.0,0.00041095,2]
[394396830,1763530235051,-300.99786132,0.00041095,2]
[394396831,1763530235061,-153.48713579,0.00041096,30]
[394396832,1763530235071,-151.91077717,0.00041096,30]
[394396833,1763530235079,-152.89310982,0.00041096,30]
[394396834,1763530235089,-150.47176423,0.00041096,30]
[394396835,1763530235098,-150.0,0.00041096,30]
[394396836,1763530235108,-157.14527491,0.00041096,30]
[394396837,1763530235117,-150.0,0.00041096,30]
[394396838,1763530235126,-150.0,0.00041096,30]
[394396839,1763530235135,-150.74201944,0.00041096,30]
[394396840,1763530235145,-151.73896267,0.00041096,30]
[394396841,1763530235154,-151.15098016,0.00041096,30]
[394396842,1763530235163,-150.96925715,0.00041096,30]
[394396843,1763530235172,-150.0,0.00041096,30]
[394396844,1763530235181,-150.0,0.00041096,30]
[394396845,1763530235191,-500.0,0.00041096,30]
[394396846,1763530235201,-500.0,0.00041096,30]
[394396847,1763530235211,-150.0,0.00041096,2]
[394396848,1763530235220,-150.0,0.00041096,30]
[394396849,1763530235228,-150.0,0.00041096,2]
[394396850,1763530235238,-500.0,0.00041096,30]
[394396851,1763530235247,-500.0,0.00041096,30]
[394396852,1763530235255,-150.0,0.00041096,2]
[394396853,1763530235264,-150.0,0.00041096,30]
[394396854,1763530235273,-150.0,0.00041096,30]
[394396855,1763530235282,-150.0,0.00041096,30]
[394396856,1763530235291,-154.14682216,0.00041096,30]
[394396857,1763530235300,-150.0,0.00041096,30]
[394396858,1763530235309,-150.0,0.00041096,30]
[394396859,1763530235319,-150.0,0.00041096,30]
[394396860,1763530235328,-151.24573803,0.00041096,30]
[394396861,1763530235337,-500.0,0.00041096,2]
[394396862,1763530235346,-500.0,0.00041096,30]
[394396863,1763530235355,-150.0,0.00041096,30]
[394396864,1763530235363,-150.0,0.00041096,30]
[394396865,1763530235373,-150.0,0.00041096,30]
[394396866,1763530235382,-150.0,0.00041096,30]
[394396867,1763530235391,-240.48788953,0.00041096,30]
[394396868,1763530235400,-150.0,0.00041096,30]
[394396869,1763530235409,-150.0,0.00041096,30]
[394396870,1763530235418,-150.0,0.00041096,2]
[394396871,1763530235427,-150.0,0.00041096,30]
[394396872,1763530235436,-500.0,0.00041096,120]
[394396873,1763530235446,-150.0,0.00041096,30]
[394396874,1763530235456,-151.0,0.00041096,120]
[394396875,1763530235466,-869.56,0.00041108,30]
[394396876,1763530235475,-150.0,0.00041112,14]
[394396877,1763530235484,-300.0,0.00041115,2]
[394396878,1763530235494,-300.0,0.0004112,2]
[394396879,1763530235503,-153.97310303,0.00041123,30]
[394396880,1763530235512,-150.0,0.00041123,30]
[394396881,1763530235521,-156.13584446,0.00041123,30]
[394396882,1763530235532,-170.16025995,0.00041123,30]
[394396883,1763530235542,-150.0,0.00041123,30]
[394396884,1763530235551,-500.0,0.00041123,30]
[394396885,1763530235560,-500.0,0.00041123,30]
[394396886,1763530235570,-159.33028222,0.00041123,30]
[394396887,1763530235580,-500.0,0.00041123,30]
[394396888,1763530235590,-500.0,0.00041123,30]
[394396889,1763530235600,-150.0,0.00041123,30]
[394396890,1763530235609,-150.0,0.00041123,30]
[394396891,1763530235619,-150.0,0.00041123,30]
[394396892,1763530235629,-500.0,0.00041123,2]
[394396893,1763530235638,-500.0,0.00041123,30]
[394396894,1763530235647,-150.0,0.00041123,30]
[394396895,1763530235657,-150.0,0.00041123,2]
[394396896,1763530235666,-500.0,0.00041123,120]
[394396897,1763530235676,-150.0,0.00041123,30]
[394396898,1763530235686,-300.0,0.00041124,2]
[394396899,1763530235695,-150.0,0.0004115,14]
[394396900,1763530235705,-202.03729613,0.00041151,30]
[394396901,1763530235715,-500.0,0.00041151,30]
[394396902,1763530235724,-500.0,0.00041151,30]
[394396903,1763530235734,-500.0,0.00041151,30]
[394396904,1763530235748,-500.0,0.00041151,30]
[394396905,1763530235757,-200.0,0.00041151,30]
[394396906,1763530235767,-200.0,0.00041151,30]
[394396907,1763530235776,-150.0,0.00041151,30]
[394396908,1763530235787,-500.0,0.00041151,2]
[394396909,1763530235796,-150.0,0.00041151,30]
[394396910,1763530235805,-200.0,0.00041151,30]
[394396911,1763530235815,-200.0,0.00041151,2]
[394396912,1763530235824,-320.0,0.00041151,120]
[394396913,1763530235833,-200.0,0.00041151,30]
[394396914,1763530235842,-243.0,0.00041152,120]
[394396915,1763530235851,-300.0,0.00041163,2]
[394396916,1763530235860,-150.0,0.00041164,14]
[394396917,1763530235869,-300.0,0.00041165,2]
[394396918,1763530235879,-300.0,0.00041173,2]
[394396919,1763530235888,-150.0,0.00041176,14]
[394396920,1763530235898,-500.0,0.00041178,30]
[394396921,1763530235907,-154.29749888,0.00041178,30]
[394396922,1763530235916,-303.81467987,0.00041178,30]
[394396923,1763530235926,-500.0,0.00041178,30]
[394396924,1763530235935,-150.0,0.00041178,30]
[394396925,1763530235944,-408.30079919,0.00041178,2]
[394396926,1763530235955,-300.0,0.0004118,2]
[394396927,1763530235964,-300.0,0.0004118,2]
[394396928,1763530235973,-500.87253113,0.00041183,10]
[394396929,1763530235982,-150.0,0.00041196,14]
[394396930,1763530235994,-1012.0,0.000412,7]
[394396931,1763530236003,-152.127677,0.00041205,120]
[394396932,1763530236013,-151.0,0.00041205,30]
[394396933,1763530236022,-151.0,0.00041205,30]
[394396934,1763530236031,-151.0,0.00041205,30]
[394396935,1763530236040,-151.0,0.00041205,30]
[394396936,1763530236049,-500.0,0.00041206,30]
[394396937,1763530236058,-500.0,0.00041206,30]
[394396938,1763530236068,-150.0,0.00041206,30]
[394396939,1763530236077,-300.0,0.0004122,2]
[394396940,1763530236088,-300.0,0.00041225,2]
[394396941,1763530236097,-1020.05341,0.0004123,8]
[394396942,1763530236106,-500.0,0.00041233,30]
[394396943,1763530236116,-250.0,0.00041233,30]
[394396944,1763530236124,-300.0,0.00041239,2]
[394396945,1763530236133,-300.0,0.00041245,2]
[394396946,1763530236142,-300.0,0.00041246,2]
[394396947,1763530236151,-300.0,0.00041248,2]
[394396948,1763530236160,-300.0,0.00041248,2]
[394396949,1763530236170,-300.0,0.00041255,2]
[394396950,1763530236187,-500.0,0.0004126,30]
[394396951,1763530236196,-300.0,0.00041264,2]
[394396952,1763530236206,-6874.06469327,0.00041264,15]
[394396953,1763530236216,-2393.92489732,0.00041264,15]
[394396954,1763530236225,-300.0,0.00041265,2]
[394396955,1763530236234,-150.0,0.00041267,14]
[394396956,1763530236245,-500.0,0.00041288,30]
[394396957,1763530236254,-150.0,0.00041298,14]
[394396958,1763530236263,-300.0,0.00041301,2]
[394396959,1763530236272,-300.0,0.00041302,2]
[394396960,1763530236281,-150.0,0.00041304,14]
[394396961,1763530236291,-159.93,0.00041305,14]
[394396962,1763530236308,-150.0,0.00041309,14]
[394396963,1763530236321,-500.0,0.00041315,30]
[394396964,1763530236330,-150.0,0.00041318,14]
[394396965,1763530236340,-150.0,0.00041321,14]
[394396966,1763530236350,-500.0,0.00041343,30]
[394396967,1763530236359,-300.0,0.00041346,2]
[394396968,1763530236368,-300.0,0.00041349,2]
[394396969,1763530236378,-300.0,0.00041351,2]
[394396970,1763530236387,-300.0,0.00041364,2]
[394396971,1763530236396,-300.0,0.00041366,2]
[394396972,1763530236407,-555.7,0.00041369,2]
[394396973,1763530236417,-3566.23,0.00041369,2]
[394396974,1763530236426,-300.0,0.00041369,2]
[394396975,1763530236436,-151.0,0.00041369,5]
[394396976,1763530236445,-599.10787057,0.0004137,30]
[394396977,1763530236456,-300.0,0.00041379,2]
[394396978,1763530236467,-869.56,0.00041382,30]
[394396979,1763530236476,-222.2113773,0.00041383,2]
[394396980,1763530236486,-300.0,0.00041384,2]
[394396981,1763530236497,-150.0,0.00041389,14]
[394396982,1763530236507,-271.63759392,0.0004139,3]
[394396983,1763530236516,-300.0,0.00041392,2]
[394396984,1763530236527,-300.0,0.00041399,2]
[394396985,1763530236537,-300.0,0.00041403,2]
[394396986,1763530236546,-300.0,0.00041406,2]
[394396987,1763530236556,-300.0,0.00041414,2]
[394396988,1763530236566,-243.0,0.00041416,2]
[394396989,1763530236575,-409.64794224,0.0004142,2]
[394396990,1763530236584,-300.0,0.0004142,2]
[394396991,1763530236594,-150.0,0.0004143,14]
[394396992,1763530236603,-300.0,0.00041431,2]
[394396993,1763530236613,-300.0,0.00041433,2]
[394396994,1763530236623,-300.0,0.00041433,2]
[394396995,1763530236633,-300.0,0.00041435,2]
[394396996,1763530236643,-300.0,0.00041439,2]
[394396997,1763530236653,-300.0,0.00041447,2]
[394396998,1763530236663,-300.0,0.00041449,2]
[394396999,1763530236672,-300.0,0.00041453,2]
[394397000,1763530236682,-150.0,0.00041453,14]
[394397001,1763530236691,-500.0,0.00041453,2]
[394397002,1763530236701,-1623.011,0.00041454,2]
[394397003,1763530236711,-822.0,0.00041454,2]
[394397004,1763530236720,-1297.266,0.00041454,2]
[394397005,1763530236730,-818.274,0.00041454,2]
[394397006,1763530236741,-1191.0,0.00041454,2]
[394397007,1763530236750,-912.792,0.00041454,2]
[394397008,1763530236760,-575.0,0.00041454,2]
[394397009,1763530236769,-1351.516,0.00041454,2]
[394397010,1763530236779,-1605.0,0.00041454,2]
[394397011,1763530236788,-300.0,0.00041455,2]
[394397012,1763530236797,-151.30383596,0.00041459,14]
[394397013,1763530236807,-300.0,0.00041459,2]
[394397014,1763530236816,-300.0,0.0004146,2]
[394397015,1763530236825,-300.0,0.00041462,2]
[394397016,1763530236834,-300.0,0.0004147,2]
[394397017,1763530236843,-531.46991526,0.00041473,10]
[394397018,1763530236853,-500.0,0.00041473,10]
[394397019,1763530236862,-500.0,0.00041473,10]
[394397020,1763530236872,-150.0,0.00041473,10]
[394397021,1763530236882,-300.0,0.00041476,2]
[394397022,1763530236891,-300.0,0.00041494,2]
[394397023,1763530236900,-6874.06469327,0.00041496,15]
[394397024,1763530236909,-2393.92489732,0.00041496,15]
[394397025,1763530236918,-300.0,0.00041512,2]
[394397026,1763530236927,-300.0,0.00041513,2]
[394397027,1763530236936,-159.93,0.00041514,14]
[394397028,1763530236945,-150.0,0.00041515,14]
[394397029,1763530236955,-300.0,0.0004152,2]
[394397030,1763530236964,-150.0,0.0004153,14]
[394397031,1763530236974,-300.0,0.00041531,2]
[394397032,1763530236983,-154.90210025,0.00041535,3]
[394397033,1763530236994,-162.97952069,0.00041536,7]
[394397034,1763530237003,-300.0,0.00041537,2]
[394397035,1763530237013,-196.36573987,0.00041543,2]
[394397036,1763530237022,-300.0,0.00041548,2]
[394397037,1763530237032,-300.0,0.00041556,2]
[394397038,1763530237041,-150.0,0.00041558,14]
[394397039,1763530237051,-300.0,0.00041569,2]
[394397040,1763530237060,-151.0,0.00041569,120]
[394397041,1763530237070,-300.0,0.00041573,2]
[394397042,1763530237079,-300.0,0.00041576,2]
[394397043,1763530237088,-300.0,0.00041577,2]
[394397044,1763530237097,-300.0,0.00041582,2]
[394397045,1763530237106,-300.0,0.00041586,2]
[394397046,1763530237116,-300.0,0.00041592,2]
[394397047,1763530237125,-150.0,0.00041593,14]
[394397048,1763530237135,-300.0,0.00041593,2]
[394397049,1763530237144,-1070.0,0.000416,7]
[394397050,1763530237153,-300.0,0.00041601,2]
[394397051,1763530237163,-150.0,0.00041602,14]
[394397052,1763530237172,-300.0,0.00041608,2]
[394397053,1763530237182,-300.0,0.00041616,2]
[394397054,1763530237191,-150.0,0.00041616,14]
[394397055,1763530237200,-2000.0,0.0004162,3]
[394397056,1763530237210,-300.0,0.0004162,2]
[394397057,1763530237219,-500.0,0.00041621,10]
[394397058,1763530237236,-150.0,0.00041626,14]
[394397059,1763530237247,-157.46204088,0.00041627,20]
[394397060,1763530237256,-555.7,0.00041643,2]
[394397061,1763530237266,-3566.23,0.00041643,2]
[394397062,1763530237275,-300.0,0.00041643,2]
[394397063,1763530237285,-300.0,0.00041655,2]
[394397064,1763530237294,-869.56,0.00041656,30]
[394397065,1763530237304,-60081.17612394,0.0004166,120]
[394397066,1763530237313,-151.0,0.00041667,120]
[394397067,1763530237323,-151.0,0.00041667,120]
[394397068,1763530237333,-151.0,0.00041667,120]
[394397069,1763530237343,-151.0,0.00041667,120]
[394397070,1763530237352,-151.0,0.00041667,120]
[394397071,1763530237361,-151.0,0.00041667,120]
[394397072,1763530237370,-151.0,0.00041667,120]
[394397073,1763530237379,-151.0,0.00041667,120]
[394397074,1763530237388,-151.0,0.00041667,120]
[394397075,1763530237397,-151.0,0.00041667,120]
[394397076,1763530237406,-151.0,0.00041667,120]
[394397077,1763530237415,-151.0,0.00041667,120]
[394397078,1763530237424,-151.0,0.00041667,120]
[394397079,1763530237433,-151.0,0.00041667,120]
[394397080,1763530237442,-151.0,0.00041667,120]
[394397081,1763530237454,-151.0,0.00041667,120]
[394397082,1763530237463,-152.881792,0.00041667,120]
[394397083,1763530237472,-151.0,0.00041667,120]
[394397084,1763530237482,-179.674914,0.00041667,120]
[394397085,1763530237492,-151.0,0.00041667,120]
[394397086,1763530237503,-179.674914,0.00041667,120]
[394397087,1763530237512,-179.674914,0.00041667,120]
[394397088,1763530237521,-151.0,0.00041667,120]
[394397089,1763530237531,-179.674914,0.00041667,120]
[394397090,1763530237540,-151.0,0.00041667,120]
[394397091,1763530237550,-300.0,0.00041668,2]
[394397092,1763530237559,-300.0,0.00041669,2]
[394397093,1763530237568,-235.94768431,0.00041679,14]
[394397094,1763530237578,-300.0,0.00041681,2]
[394397095,1763530237587,-300.0,0.00041685,2]
[394397096,1763530237596,-152.133413,0.00041691,120]
[394397097,1763530237605,-151.0,0.00041691,120]
[394397098,1763530237614,-151.0,0.00041691,120]
[394397099,1763530237623,-158.918337,0.00041691,120]
[394397100,1763530237632,-151.0,0.00041691,120]
[394397101,1763530237642,-151.0,0.00041691,120]
[394397102,1763530237652,-151.0,0.00041691,120]
[394397103,1763530237662,-151.0,0.00041691,120]
[394397104,1763530237672,-151.0,0.00041691,120]
[394397105,1763530237681,-151.0,0.00041691,120]
[394397106,1763530237690,-151.0,0.00041691,120]
[394397107,1763530237699,-151.0,0.00041691,120]
[394397108,1763530237709,-300.0,0.00041694,2]
[394397110,1763530237718,-218.37222662,0.000417,120]
[394397112,1763530237881,-1000.0,0.00041704,14]
[394397113,1763530237890,-151.0,0.00041707,120]
[394397114,1763530237900,-151.0,0.00041707,120]
[394397115,1763530237909,-151.0,0.00041707,120]
[394397116,1763530237918,-156.937698,0.00041707,120]
[394397117,1763530237927,-151.0,0.00041707,120]
[394397118,1763530237936,-151.0,0.00041707,120]
[394397119,1763530237945,-151.0,0.00041707,120]
[394397120,1763530237959,-151.0,0.00041707,120]
[394397121,1763530237968,-151.0,0.00041707,120]
[394397122,1763530237977,-151.0,0.00041707,120]
[394397123,1763530237987,-151.0,0.00041707,14]
[394397124,1763530237999,-151.0,0.00041707,14]
[394397125,1763530238008,-151.0,0.00041707,120]
[394397126,1763530238018,-676.36329491,0.00041707,120]
[394397127,1763530238028,-300.0,0.00041712,2]
[394397128,1763530238038,-676.36329491,0.00041718,120]
[394397129,1763530238048,-300.0,0.00041724,2]
[394397130,1763530238057,-500.0,0.00041727,2]
[394397131,1763530238067,-500.0,0.00041727,2]
[394397132,1763530238076,-27.21207027,0.00041728,2]
[394397134,1763530238210,-151.23,0.00025772,2]
[394397135,1763530238219,-424.73530703,0.00039415,30]
[394397136,1763530238231,-9790.62093353,0.00039415,30]
[394397137,1763530238240,-170.96446725,0.00041276,28]
[394397138,1763530238251,-2187.78872973,0.00041728,2]
[394397140,1763530238260,-16727.51103634,0.00041728,120]
[394397143,1763530238271,-3466.49132795,0.00041728,120]
[394397145,1763530238282,-899.99999993,0.00041728,120]
[394397147,1763530238297,-294.75802627,0.00041728,120]
[394397149,1763530238308,-4470.48707646,0.00041728,120]
[394397151,1763530238320,-122959.86323305,0.00041728,120]
[394397153,1763530238329,-151.0,0.00041728,120]
[394397155,1763530238339,-151.0,0.00041728,120]
[394397157,1763530238348,-154.897335,0.00041728,120]
[394397159,1763530238357,-151.0,0.00041728,120]
[394397161,1763530238366,-151.0,0.00041728,120]
[394397163,1763530238376,-151.0,0.00041728,120]
[394397165,1763530238385,-151.0,0.00041728,120]
[394397166,1763530238395,-151.0,0.00041728,120]